bitfinex/quotes_ETHUSD_20240922
["timestamp","ask_amount","ask_price","bid_price","bid_amount"]
[1726974103508,0.55,2598.9,2598.5,3.84825]
[1726974104251,0.55,2598.9,2598.6,3.84818]
[1726974105342,0.55,2598.9,2598.6,3.0]
[1726974105654,0.55,2598.9,2598.6,6.84819]
[1726974106965,0.55,2598.9,2598.6,3.0]
[1726974107260,1.55618587,2598.9,2598.5,7.69652]
[1726974108256,0.55,2598.9,2598.3,7.11746602]
[1726974108437,0.55,2598.9,2598.7,3.84793]
[1726974109929,0.55,2598.9,2598.7,7.69591]
[1726974110325,0.55,2598.9,2598.7,3.84793]
[1726974112127,0.55,2598.9,2598.7,7.69592]
[1726974112362,0.55,2598.9,2598.7,3.84793]
[1726974118822,0.55,2598.9,2598.6,3.84818]
[1726974119116,1.71323041,2598.9,2598.5,3.84826]
[1726974119492,1.71323041,2598.9,2598.5,7.69653]
[1726974119971,1.71323041,2598.9,2598.5,7.69654]
[1726974120175,1.71323041,2598.9,2598.5,3.84826]
[1726974120625,5.73,2598.9,2598.7,3.84802]
[1726974120825,5.73,2598.9,2598.7,7.69601]
[1726974121190,5.73,2598.9,2598.7,3.84799]
[1726974126713,5.73,2598.9,2598.1,1.63046602]
[1726974126714,2.8711,2598.3,2596.7,7.556309]
[1726974127045,2.8711,2598.3,2596.9,3.85064]
[1726974127046,0.55,2597.3,2596.9,3.85064]
[1726974127220,0.55,2597.3,2596.7,6.12718]
[1726974127221,0.28711,2597.2,2596.7,6.12718]
[1726974127433,0.55,2597.1,2596.5,3.85132]
[1726974127637,0.55,2597.1,2596.6,3.85118]
[1726974128206,0.55,2597.1,2596.5,3.85132]
[1726974128436,2.8711,2597.1,2596.5,3.85132]
[1726974128665,6.72154,2597.1,2596.3,3.85158]
[1726974129710,43.29520388,2597.1,2596.3,3.85158]
[1726974129911,43.29520388,2597.1,2596.4,3.0]
[1726974130144,43.29520388,2597.1,2596.2,6.8899408]
[1726974130329,43.29520388,2597.1,2596.3,3.8516]
[1726974132147,36.57366388,2597.1,2596.7,2.2762]
[1726974132330,36.57366388,2597.1,2596.8,3.85078]
[1726974132527,5.18,2597.3,2596.8,3.85078]
[1726974133843,5.18,2597.3,2596.7,2.2762]
[1726974133844,9.03015,2597.3,2596.7,5.2762]
[1726974134153,0.55,2597.2,2596.7,5.2762]
[1726974134763,0.55,2597.2,2596.7,9.12722]
[1726974135885,0.55,2597.2,2596.7,5.2762]
[1726974136640,0.54422788,2597.2,2596.7,5.2762]
[1726974137137,0.54422788,2597.2,2596.7,9.12717]
[1726974137448,0.54422788,2597.2,2596.8,3.85089]
[1726974137867,0.54422788,2597.2,2596.8,3.85079]
[1726974141551,0.54422788,2597.2,2596.8,7.70159]
[1726974141746,0.54422788,2597.2,2596.8,3.85079]
[1726974146898,0.54422788,2597.2,2596.9,3.85072]
[1726974147875,0.54422788,2597.2,2596.8,3.85079]
[1726974149206,0.54422788,2597.2,2596.8,7.70158]
[1726974150111,0.54422788,2597.2,2596.9,3.85072]
[1726974151101,0.54422788,2597.2,2596.8,3.85079]
[1726974151308,0.54422788,2597.2,2596.8,3.85078]
[1726974151490,5.18,2597.3,2596.8,0.077012]
[1726974151690,5.18,2597.3,2597.1,3.85036]
[1726974151876,5.18,2597.3,2597.2,0.38885808]
[1726974154496,5.18,2597.3,2597.2,4.23915808]
[1726974155632,2.3641,2598.1,2597.6,3.84958]
[1726974155829,5.18,2598.0,2597.6,3.84958]
[1726974156189,5.18,2598.0,2597.6,7.69919]
[1726974156389,5.18,2598.0,2597.6,4.65370344]
[1726974156589,5.18,2598.0,2597.6,3.84958]
[1726974156989,0.55,2597.9,2597.6,3.84958]
[1726974157468,5.18,2598.0,2597.7,3.84946]
[1726974158804,5.18,2598.0,2597.8,3.8494]
[1726974161943,5.18,2598.0,2597.9,6.10456]
[1726974162154,5.18,2598.0,2597.9,13.63563952]
[1726974162472,5.18,2598.0,2597.9,10.049956]
[1726974166345,5.18,2598.0,2597.9,3.0]
[1726974168347,5.73,2598.0,2597.9,3.0]
[1726974169673,5.18,2598.0,2597.9,6.84926]
[1726974173965,5.18,2598.0,2597.8,3.84931]
[1726974174271,5.18,2598.0,2597.6,3.84961]
[1726974174463,5.18,2598.0,2597.7,3.84947]
[1726974179192,6.28356,2597.9,2597.4,6.84992]
[1726974179496,4.39949,2597.8,2597.2,6.12107]
[1726974179672,3.84956,2597.7,2597.3,3.0]
[1726974179879,0.55,2597.6,2597.3,3.0]
[1726974180078,0.55,2597.6,2597.0,9.1594708]
[1726974180079,2.9843,2597.6,2597.0,9.1594708]
[1726974180249,2.9843,2597.6,2597.2,3.85025]
[1726974180587,2.9843,2597.6,2597.2,3.8502]
[1726974180760,3.7360169,2597.6,2597.2,3.8502]
[1726974181572,3.7360169,2597.6,2597.1,3.85043]
[1726974181807,7.5857269,2597.6,2597.0,6.1595408]
[1726974182175,7.5857269,2597.6,2597.0,10.0100408]
[1726974184384,7.5857269,2597.6,2597.0,6.1595208]
[1726974184580,7.5857269,2597.6,2597.0,10.0100108]
[1726974184581,0.75857269,2597.5,2597.0,10.0100108]
[1726974186757,0.75857269,2597.5,2597.2,3.85021]
[1726974186959,0.55,2597.6,2597.2,3.85021]
[1726974187185,0.55,2597.7,2597.2,3.85021]
[1726974196215,0.55,2597.5,2597.2,3.85021]
[1726974197466,5.18,2597.4,2597.2,3.85021]
[1726974198116,5.18,2597.4,2597.0,7.7392108]
[1726974198117,2.3321,2597.3,2597.0,7.7392108]
[1726974199917,2.3321,2597.3,2597.1,3.85043]
[1726974200281,2.3321,2597.3,2597.0,3.8887108]
[1726974200478,2.3321,2597.3,2597.1,3.85044]
[1726974201965,2.3321,2597.3,2597.0,3.0382208]
[1726974202209,2.8821,2597.1,2597.0,0.0382208]
[1726974209148,6.73254,2597.1,2597.0,0.0382208]
[1726974210737,8.34330595,2597.1,2597.0,0.0382208]
[1726974212573,6.73254,2597.1,2597.0,0.0382208]
[1726974212838,8.39728042,2597.1,2597.0,0.0382208]
[1726974214276,4.54684042,2597.1,2597.0,0.0382208]
[1726974214560,2.8821,2597.1,2597.0,0.0382208]
[1726974216233,6.79076595,2597.4,2597.1,2.4511]
[1726974216426,5.18,2597.4,2597.1,2.4511]
[1726974216754,5.18,2597.4,2597.2,3.85027]
[1726974225867,5.18,2597.4,2597.1,9.30152]
[1726974226171,5.18,2597.4,2597.0,0.0382208]
[1726974226172,0.55,2597.3,2597.0,0.0382208]
[1726974227160,11.39358397,2597.4,2597.0,0.0382208]
[1726974227161,9.76104255,2597.4,2597.0,0.0382208]
[1726974227327,2.16076595,2597.3,2597.0,0.0382208]
[1726974228231,0.55,2597.3,2597.0,0.0382208]
[1726974228438,2.16076595,2597.3,2597.0,0.0382208]
[1726974229477,0.55,2597.3,2597.0,0.0382208]
[1726974229880,2.16076595,2597.3,2597.0,0.0382208]
[1726974230171,0.55,2597.3,2597.0,0.0382208]
[1726974230379,2.16076595,2597.3,2597.0,0.0382208]
[1726974231631,0.55,2597.3,2597.0,0.0382208]
[1726974232035,2.16076595,2597.3,2597.0,0.0382208]
[1726974232645,0.55,2597.3,2597.0,0.0382208]
[1726974233060,2.16076595,2597.3,2597.0,0.0382208]
[1726974233459,1.61076595,2597.3,2597.1,2.2601]
[1726974233718,5.31954518,2597.9,2597.0,0.81219088]
[1726974233719,1.42165591,2598.0,2597.7,2.2601]
[1726974233980,5.24703768,2598.5,2598.2,3.84881]
[1726974234181,5.18,2598.5,2598.1,5.2601]
[1726974234352,5.18,2598.5,2598.2,3.84881]
[1726974234541,5.18,2598.5,2598.3,3.84866]
[1726974234742,5.18,2598.5,2598.2,3.0]
[1726974234977,5.18,2598.5,2598.1,2.2601]
[1726974235379,5.18,2598.5,2598.1,6.10904]
[1726974235687,5.18,2598.5,2598.1,2.2601]
[1726974237789,5.18,2598.5,2598.3,3.84865]
[1726974239260,5.18,2598.5,2598.2,0.07697366]
[1726974239457,5.18,2598.5,2598.4,3.84852]
[1726974246648,0.55,2598.4,2597.9,3.84923]
[1726974246851,2.4931,2598.3,2598.1,3.84896]
[1726974247082,2.4931,2598.3,2598.1,7.6978]
[1726974247281,2.4931,2598.3,2598.1,3.84884]
[1726974247773,5.18,2598.5,2598.3,3.84862]
[1726974247980,5.18,2598.5,2598.4,3.84852]
[1726974248573,5.18,2598.5,2598.4,6.10862]
[1726974251189,5.18,2598.5,2598.4,3.84852]
[1726974256694,5.17037888,2598.5,2598.4,3.84852]
[1726974257874,5.17037888,2598.5,2598.4,4.618234]
[1726974258100,5.17037888,2598.5,2598.4,6.881734]
[1726974266100,5.17037888,2598.5,2598.1,0.384884]
[1726974266455,5.17037888,2598.5,2598.1,3.84887]
[1726974266738,5.17037888,2598.5,2598.2,3.84881]
[1726974267101,5.17037888,2598.5,2598.2,3.84872]
[1726974267307,5.17037888,2598.5,2598.3,3.84866]
[1726974268130,5.17037888,2598.5,2598.2,3.84872]
[1726974268516,5.17037888,2598.5,2598.0,3.84903]
[1726974268517,5.17037888,2598.5,2598.0,3.84901]
[1726974268741,5.17037888,2598.5,2598.1,3.84885]
[1726974268949,2.2763,2598.4,2598.1,3.84885]
[1726974270443,2.2763,2598.4,2598.2,3.84881]
[1726974270664,2.2763,2598.4,2598.1,3.84885]
[1726974272919,2.2763,2598.4,2598.2,3.84878]
[1726974273561,5.17037888,2598.5,2598.2,3.84878]
[1726974274277,5.17037888,2598.5,2598.1,3.84885]
[1726974274278,5.92273677,2598.5,2598.1,3.84885]
[1726974275231,5.92273677,2598.5,2597.7,3.0]
[1726974275232,6.75177,2598.4,2597.7,3.0]
[1726974275429,6.75177,2598.4,2597.8,3.8494]
[1726974278977,2.01223513,2599.1,2598.5,2.3986]
[1726974279160,6.20031,2599.4,2598.5,2.3986]
[1726974279161,2.01223513,2599.4,2598.9,6.24625]
[1726974279367,0.0669686,2599.4,2599.0,3.53461982]
[1726974279574,4.36543513,2599.6,2599.0,7.45918676]
[1726974279575,2.01223513,2599.5,2599.0,7.45918676]
[1726974279800,4.36543513,2599.6,2599.3,3.84714]
[1726974280082,4.36543513,2599.6,2599.0,3.84758]
[1726974280377,5.18175039,2599.7,2599.4,7.38155982]
[1726974280590,7.19398552,2599.7,2599.3,3.84718]
[1726974281072,7.19398552,2599.7,2599.1,3.53461982]
[1726974281073,7.19398552,2599.7,2599.1,3.84744]
[1726974281690,5.18175039,2599.7,2599.1,3.84744]
[1726974282005,7.19398552,2599.7,2599.1,3.84744]
[1726974282165,7.19398552,2599.7,2599.2,3.84726]
[1726974283015,7.19398552,2599.7,2599.3,3.84713]
[1726974284369,5.18175039,2599.7,2599.3,3.84713]
[1726974284777,5.18175039,2599.7,2599.6,3.84674]
[1726974286517,0.0382208,2600.1,2599.4,9.78022982]
[1726974286518,0.0382208,2600.1,2600.0,3.84615]
[1726974287812,0.0382208,2600.1,2599.8,3.84643]
[1726974288105,2.3532,2600.0,2599.7,3.84651]
[1726974288907,2.3532,2600.0,2599.8,3.84644]
[1726974289483,0.0382208,2600.1,2600.0,3.84615]
[1726974301912,0.0382208,2600.1,2600.0,6.14715]
[1726974302894,0.0382208,2600.1,2600.0,3.84615]
[1726974303213,0.0382208,2600.1,2599.9,3.8463]
[1726974303214,2.3473,2600.0,2599.9,3.8462]
[1726974306017,0.0382208,2600.1,2599.9,3.8462]
[1726974306243,0.0382208,2600.1,2600.0,3.84615]
[1726974307967,0.0382208,2600.1,2599.8,3.84635]
[1726974308526,0.0382208,2600.1,2599.9,3.84619]
[1726974308849,0.0382208,2600.1,2600.0,3.84615]
[1726974309659,0.0382208,2600.1,2599.8,3.84635]
[1726974309660,0.0382208,2600.1,2599.9,3.84629]
[1726974310022,2.8973,2600.0,2599.3,2.301]
[1726974310346,2.3473,2599.7,2599.2,3.84724]
[1726974310661,0.55,2599.6,2599.0,6.14854]
[1726974310825,0.55,2599.6,2599.0,6.763394]
[1726974311347,0.55,2599.6,2599.2,3.84724]
[1726974311556,0.55,2599.6,2599.3,3.84709]
[1726974311772,2.3473,2599.7,2599.1,0.07694513]
[1726974312074,2.3473,2599.7,2599.5,3.84686]
[1726974312531,2.9993,2599.9,2599.6,3.84674]
[1726974312730,2.4493,2599.9,2599.7,3.84649]
[1726974312935,5.18175039,2600.0,2599.9,3.8463]
[1726974317148,5.18175039,2600.0,2599.8,3.84644]
[1726974317978,5.18175039,2600.0,2599.8,7.69279]
[1726974318752,5.18175039,2600.0,2599.8,7.69269]
[1726974318981,5.18175039,2600.0,2599.9,3.8463]
[1726974321156,5.18175039,2600.0,2599.8,7.69268]
[1726974321583,5.18175039,2600.0,2599.8,3.84634]
[1726974321956,5.18175039,2600.0,2599.8,7.69267]
[1726974322158,5.18175039,2600.0,2599.8,3.84633]
[1726974322469,5.18175039,2600.0,2599.8,7.69268]
[1726974322662,5.18175039,2600.0,2599.6,3.8467]
[1726974322910,2.4493,2599.8,2599.6,3.84665]
[1726974326190,0.55,2599.9,2599.6,7.69329]
[1726974326500,0.55,2599.9,2599.7,3.84656]
[1726974327412,5.18175039,2600.0,2599.9,3.8463]
[1726974332806,0.0382208,2600.1,2600.0,3.84615]
[1726974333006,0.0382208,2600.1,2600.0,6.25115]
[1726974334014,0.0382208,2600.1,2600.0,9.25115]
[1726974336493,0.0382208,2600.1,2600.0,12.78576982]
[1726974343929,5.90084386,2600.9,2600.0,10.38076982]
[1726974343930,0.28776654,2600.9,2600.0,10.38076982]
[1726974344175,0.10517304,2601.7,2601.5,3.0]
[1726974344176,0.0382208,2601.7,2601.5,3.0]
[1726974344464,0.0382208,2601.7,2601.6,13.44165157]
[1726974344742,0.0382208,2601.7,2601.6,11.61839982]
[1726974344934,0.0382208,2601.7,2601.6,13.64080757]
[1726974345126,0.0382208,2601.7,2601.6,16.04580757]
[1726974346692,0.0382208,2601.7,2601.6,10.48878]
[1726974348734,0.0382208,2601.7,2601.6,11.46357687]
[1726974349314,0.0382208,2601.7,2601.6,10.22357687]
[1726974351348,0.0382208,2602.4,2602.3,6.24775]
[1726974351653,0.0382208,2602.4,2602.3,9.24775]
[1726974352145,0.0382208,2602.4,2602.3,6.84275]
[1726974352450,0.0382208,2602.4,2602.3,3.84275]
[1726974355124,0.0382208,2602.4,2602.3,4.457604]
[1726974356157,0.0382208,2602.4,2602.3,4.53445055]
[1726974357757,0.0382208,2602.4,2602.3,4.457604]
[1726974360342,0.0382208,2602.4,2602.3,4.53444359]
[1726974360543,0.0382208,2602.4,2602.3,4.457604]
[1726974360742,0.0382208,2602.4,2602.3,4.53444357]
[1726974362240,0.0382208,2602.4,2602.3,4.457604]
[1726974363082,0.0382208,2602.4,2602.3,3.84275]
[1726974363381,0.5882208,2602.4,2602.3,3.84275]
[1726974366249,0.0382208,2602.4,2602.3,3.84275]
[1726974366441,2.3676208,2602.6,2602.5,3.84245]
[1726974367380,2.3676208,2602.6,2602.3,3.84263]
[1726974367682,2.3676208,2602.6,2602.4,3.8425]
[1726974367986,2.3676208,2602.6,2602.3,3.84263]
[1726974367987,2.3676208,2602.6,2602.5,3.84245]
[1726974370151,2.3176208,2602.6,2602.5,3.84245]
[1726974370979,0.55,2603.3,2602.8,3.842]
[1726974371987,7.92591982,2603.3,2602.6,3.84219]
[1726974372298,7.92591982,2603.3,2602.6,3.84218]
[1726974372597,7.92591982,2603.3,2602.6,7.68439]
[1726974372757,0.55,2603.1,2602.6,7.68439]
[1726974372958,0.55,2602.9,2602.4,3.84251]
[1726974373197,0.55,2602.7,2602.4,3.84256]
[1726974374954,0.55,2602.7,2602.2,3.84279]
[1726974375872,0.55,2602.7,2602.2,7.6856]
[1726974376401,0.55,2602.7,2602.2,3.84279]
[1726974376595,0.54807866,2602.7,2602.3,3.84273]
[1726974377191,0.54807866,2602.7,2602.4,3.84254]
[1726974377492,0.54807866,2602.7,2602.5,3.84245]
[1726974377660,0.54807866,2602.7,2602.4,3.84254]
[1726974377861,0.54807866,2602.7,2602.6,3.84231]
[1726974378278,2.3089,2603.1,2602.7,3.84211]
[1726974379095,2.3089,2603.1,2602.7,3.84207]
[1726974379604,2.3089,2603.1,2602.9,3.84183]
[1726974379818,0.55,2603.0,2602.9,3.84183]
[1726974381675,0.55,2603.0,2602.7,3.84207]
[1726974383574,0.55,2603.0,2602.8,3.84191]
[1726974384483,0.55,2603.0,2602.7,3.84207]
[1726974384484,0.55,2603.0,2602.7,3.84206]
[1726974384683,0.55,2603.0,2602.9,3.84186]
[1726974384895,0.55,2603.0,2602.7,7.6841]
[1726974385093,0.55,2603.0,2602.8,3.84198]
[1726974386206,0.55,2603.0,2602.7,3.84204]
[1726974386207,0.83589,2603.0,2602.7,3.84204]
[1726974386410,0.55,2602.8,2602.7,3.84204]
[1726974387322,0.55,2602.8,2602.6,3.84221]
[1726974387493,0.55,2602.8,2602.7,3.84216]
[1726974389227,0.5,2602.8,2602.7,3.84216]
[1726974390886,0.5,2602.8,2602.6,3.84221]
[1726974393293,0.78089,2602.8,2602.6,3.84221]
[1726974393905,0.78089,2602.8,2602.3,3.84266]
[1726974394104,0.78089,2602.8,2602.3,3.84264]
[1726974394105,0.55,2602.6,2602.3,3.84264]
[1726974394343,0.55,2602.6,2602.2,7.68568]
[1726974394555,2.3086,2602.5,2602.2,3.8428]
[1726974394865,0.55,2602.4,2602.2,3.8428]
[1726974395032,0.55,2602.4,2602.0,3.84313]
[1726974395232,0.55,2602.4,2601.9,3.84331]
[1726974395434,0.55,2602.2,2601.8,3.84337]
[1726974395826,0.55,2602.2,2602.0,3.84316]
[1726974396177,0.55,2602.2,2602.1,0.38408955]
[1726974397256,2.3086,2602.5,2602.3,3.84265]
[1726974397457,7.43,2602.7,2602.4,0.38340017]
[1726974397624,2.3086,2602.8,2602.3,3.84266]
[1726974397827,2.923641,2602.8,2602.4,0.38340946]
[1726974398033,2.923641,2602.8,2602.3,7.6853]
[1726974398236,2.923641,2602.8,2602.4,4.22599285]
[1726974398431,2.923641,2602.8,2602.4,3.84256]
[1726974398834,3.57519222,2603.4,2601.8,3.0]
[1726974398835,0.55,2602.7,2601.8,3.0]
[1726974398957,0.06696081,2604.5,2601.4,2.58062213]
[1726974398958,2.4175304,2603.7,2603.2,19.53]
[1726974399165,0.40185279,2604.4,2604.2,5.07595]
[1726974399349,0.40185279,2604.4,2604.2,10.84539479]
[1726974399350,0.35240162,2604.4,2604.2,10.84539479]
[1726974399545,0.06690589,2605.2,2604.4,1.236]
[1726974399838,0.0669118,2605.5,2605.0,3.83877]
[1726974400038,0.0669118,2605.5,2605.0,2.33340891]
[1726974400239,3.99900163,2605.5,2604.4,1.236]
[1726974400542,3.99900163,2605.5,2604.7,3.83919]
[1726974400543,0.0669118,2605.5,2604.7,3.83919]
[1726974400768,0.0669118,2605.5,2604.5,3.0]
[1726974400981,0.0669118,2605.5,2604.7,3.8392]
[1726974401343,0.0422036,2606.0,2604.7,3.8392]
[1726974401799,0.0422036,2606.0,2604.8,3.83905]
[1726974401980,0.0422036,2606.0,2604.6,3.83934]
[1726974402292,2.3124,2605.3,2604.8,3.83903]
[1726974402495,2.3124,2605.3,2604.6,3.83931]
[1726974403096,2.3124,2605.3,2604.7,3.83918]
[1726974404798,2.3124,2605.3,2604.8,3.83905]
[1726974406157,2.3124,2605.3,2604.4,1.236]
[1726974406461,0.55,2605.0,2604.6,3.83935]
[1726974407196,0.55,2605.0,2604.4,4.347219]
[1726974407374,0.55,2605.0,2604.5,3.83949]
[1726974407883,0.55,2605.0,2604.1,6.32565]
[1726974408099,0.55,2604.8,2604.1,3.83995]
[1726974408562,0.55,2604.8,2603.9,3.84031]
[1726974408563,0.83472,2604.8,2603.9,3.84031]
[1726974408893,0.83472,2604.8,2603.8,2.3875]
[1726974408894,0.83472,2604.8,2603.8,6.22801]
[1726974409093,0.83472,2604.8,2603.9,3.84036]
[1726974409490,0.55,2604.6,2603.9,3.84036]
[1726974409689,0.918192,2604.6,2603.9,3.84036]
[1726974410596,0.918192,2604.6,2604.0,3.84017]
[1726974410975,0.55,2604.4,2603.5,3.84093]
[1726974411276,0.55,2604.4,2602.2,11.22286]
[1726974411277,4.12381,2604.8,2603.4,3.84108]
[1726974411278,2.2972,2604.1,2603.4,3.84108]
[1726974411480,0.55,2604.0,2603.4,3.84108]
[1726974411890,0.55,2604.0,2603.2,3.8414]
[1726974411891,0.55,2604.0,2603.5,3.84097]
[1726974412100,0.83472,2604.0,2603.5,3.84097]
[1726974412462,0.83472,2604.0,2603.3,3.84124]
[1726974412665,0.83472,2604.0,2603.0,3.84169]
[1726974412902,0.55,2603.8,2603.1,3.8415]
[1726974414012,0.55,2603.8,2603.0,3.84167]
[1726974414166,0.55,2603.6,2603.0,3.84167]
[1726974414369,0.55,2603.6,2603.1,3.84151]
[1726974415191,0.55,2603.6,2603.2,3.84141]
[1726974417222,0.55,2603.8,2603.0,3.84166]
[1726974417379,2.4057,2603.9,2603.3,3.84113]
[1726974417578,2.4057,2603.9,2603.6,3.84082]
[1726974418887,0.55,2603.8,2603.6,3.84082]
[1726974420417,0.55,2603.8,2603.3,3.84113]
[1726974420841,0.55,2603.8,2603.4,3.8411]
[1726974421128,0.84557,2603.8,2603.2,3.8414]
[1726974421918,0.84557,2603.8,2603.1,3.84146]
[1726974422524,0.84557,2603.8,2603.0,3.84171]
[1726974422826,0.84557,2603.8,2603.1,3.84157]
[1726974423281,0.84557,2603.8,2603.2,3.84138]
[1726974423481,0.55,2603.6,2603.2,3.84138]
[1726974423677,2.4057,2603.9,2603.2,2.3354]
[1726974423891,2.4057,2603.9,2603.3,3.84127]
[1726974424075,2.4057,2603.9,2603.1,3.84147]
[1726974424495,3.52097574,2603.8,2603.1,3.84147]
[1726974424715,3.52097574,2603.8,2602.9,3.84181]
[1726974424716,1.36076057,2603.7,2603.0,3.84167]
[1726974425312,2.9557,2603.6,2603.0,3.84167]
[1726974426026,2.9557,2603.6,2602.9,3.84181]
[1726974426027,2.9557,2603.6,2603.1,3.84156]
[1726974426329,2.9557,2603.6,2603.1,3.84144]
[1726974427716,2.9557,2603.6,2603.2,3.84142]
[1726974428056,2.9557,2603.6,2603.1,3.84144]
[1726974428057,2.9557,2603.6,2603.1,7.6829]
[1726974428313,2.9557,2603.6,2603.1,3.84144]
[1726974428314,3.25127,2603.6,2603.1,3.84144]
[1726974428828,3.25127,2603.6,2602.9,3.84182]
[1726974428977,3.25127,2603.6,2603.0,3.84162]
[1726974430003,2.9557,2603.6,2603.3,3.84116]
[1726974430409,2.9557,2603.6,2603.3,7.68234]
[1726974430721,2.9557,2603.6,2603.1,3.84147]
[1726974430922,2.9557,2603.6,2603.2,3.84142]
[1726974431947,2.9557,2603.6,2603.3,3.84123]
[1726974432939,2.9557,2603.6,2603.1,3.84147]
[1726974433532,3.635325,2603.6,2603.1,3.84147]
[1726974433908,3.635325,2603.6,2602.9,3.8418]
[1726974433909,3.635325,2603.6,2602.9,3.84177]
[1726974434119,3.635325,2603.6,2602.3,6.25846]
[1726974434120,3.52097574,2603.2,2602.3,6.25846]
[1726974434436,2.4194,2603.4,2602.3,6.25846]
[1726974434437,0.55,2602.8,2602.5,3.84235]
[1726974435032,2.4194,2603.1,2602.7,3.84206]
[1726974435356,7.43,2603.4,2602.9,3.84184]
[1726974435357,9.8494,2603.4,2602.9,3.84184]
[1726974435568,0.55,2603.3,2602.9,3.84184]
[1726974435713,0.55,2603.3,2602.9,3.84175]
[1726974436858,2.4194,2603.4,2602.3,5.4158]
[1726974436859,0.55,2603.1,2602.3,5.4158]
[1726974437149,0.55,2602.7,2602.3,3.84263]
[1726974437719,0.55,2602.7,2602.4,3.84254]
[1726974438848,0.55,2602.7,2602.3,7.68527]
[1726974439716,0.55,2602.7,2602.3,3.84263]
[1726974440135,0.55,2602.7,2602.4,3.8425]
[1726974440627,0.55,2602.7,2602.5,3.84244]
[1726974441124,0.55,2602.7,2602.3,7.68527]
[1726974441654,0.55,2602.7,2602.4,3.84255]
[1726974442711,0.55,2602.7,2602.3,3.84263]
[1726974442957,2.4194,2602.8,2602.5,3.84244]
[1726974443949,2.4194,2602.8,2602.3,3.84263]
[1726974444162,0.55,2602.7,2602.3,3.84263]
[1726974444460,0.55,2602.7,2602.4,3.8426]
[1726974445116,0.55,2602.7,2602.3,3.84263]
[1726974445921,0.55,2602.7,2602.3,7.68529]
[1726974446759,0.55,2602.7,2602.3,3.84263]
[1726974446971,0.55,2602.5,2601.9,0.0327472]
[1726974447131,0.55,2602.5,2601.9,3.8759772]
[1726974447337,2.9694,2602.2,2601.9,0.0327472]
[1726974448536,4.07097574,2602.0,2601.9,0.0327472]
[1726974450162,0.55,2602.1,2601.9,0.0327472]
[1726974450324,3.84163,2603.1,2601.9,0.0327472]
[1726974450325,3.52097574,2602.7,2601.9,3.8759972]
[1726974450533,2.4169,2602.6,2602.1,3.84295]
[1726974451760,0.55,2602.5,2602.1,3.84295]
[1726974452579,4.07097574,2602.5,2601.9,3.8759672]
[1726974453074,4.07097574,2602.5,2601.9,7.7192172]
[1726974453380,4.70120628,2602.5,2602.0,3.84318]
[1726974453576,2.298,2602.4,2601.9,3.8759672]
[1726974453752,0.55,2602.3,2601.9,0.0327472]
[1726974453953,1.63418263,2602.3,2601.9,0.0327472]
[1726974457569,2.298,2602.4,2602.1,3.84303]
[1726974458869,0.55,2602.3,2602.2,3.8429]
[1726974459895,0.55,2602.5,2602.2,3.8429]
[1726974460093,0.55,2602.5,2602.1,3.84303]
[1726974460610,0.55,2602.5,2602.1,3.84295]
[1726974461881,0.55,2602.5,2602.3,3.84273]
[1726974464485,2.298,2602.6,2602.4,3.8426]
[1726974464693,3.84,2603.0,2602.8,3.84199]
[1726974465189,3.84,2603.0,2602.7,3.84201]
[1726974466277,0.55,2602.9,2602.7,3.84201]
[1726974467462,0.55,2602.9,2602.6,3.84221]
[1726974469764,0.55,2602.9,2602.7,3.84213]
[1726974470827,0.55,2602.9,2602.7,3.84054979]
[1726974472856,1.2188,2602.9,2602.2,2.3813]
[1726974473061,0.55,2602.9,2602.7,3.84205]
[1726974473316,0.55,2603.0,2602.8,3.84201]
[1726974478205,1.18689757,2603.0,2602.8,3.84201]
[1726974480919,1.18689757,2603.0,2602.8,7.68391]
[1726974481119,2.3024,2603.4,2602.6,3.84229]
[1726974481441,2.3024,2603.4,2603.1,3.84146]
[1726974482897,0.55,2603.3,2603.1,3.84146]
[1726974487128,0.55,2603.3,2603.2,3.84142]
[1726974487835,0.55,2603.4,2603.2,3.84142]
[1726974490387,0.95709757,2603.4,2603.2,3.84142]
[1726974490944,0.55,2603.4,2603.3,3.84127]
[1726974491249,0.55,2603.6,2603.3,3.84127]
[1726974491561,0.55,2603.6,2603.2,7.68275]
[1726974492161,0.55,2603.6,2603.2,3.84133]
[1726974492362,0.55,2603.6,2603.2,3.8413]
[1726974492657,1.20322757,2603.6,2603.2,3.8413]
[1726974493763,1.20322757,2603.6,2603.2,7.6826]
[1726974497291,1.20322757,2603.6,2603.3,3.84123]
[1726974497789,1.20322757,2603.6,2603.2,3.8413]
[1726974498200,1.20322757,2603.6,2603.2,7.68263]
[1726974498486,0.55,2603.4,2603.2,3.8413]
[1726974503082,0.55,2603.4,2603.0,3.84159]
[1726974503405,2.8618,2603.3,2603.2,3.84138]
[1726974503971,2.8618,2603.3,2602.2,7.38]
[1726974503972,0.55,2603.2,2602.2,7.38]
[1726974504205,0.55,2603.2,2602.6,3.84222]
[1726974504206,0.55,2603.0,2602.6,3.84222]
[1726974504509,0.55,2602.8,2602.6,3.84222]
[1726974505508,0.55,2602.8,2602.7,3.84216]
[1726974505788,0.55,2603.0,2602.7,3.84216]
[1726974507119,0.55,2603.0,2602.6,3.84222]
[1726974507429,2.3118,2602.9,2602.4,3.84249]
[1726974507611,0.55,2602.8,2602.2,3.84278]
[1726974507818,2.4474,2602.7,2602.2,3.84278]
[1726974507989,0.55,2602.6,2602.2,3.84278]
[1726974508189,1.20183757,2602.6,2602.2,3.84278]